fUST/lending_fUST_20250619
["ID","MTS","AMOUNT","RATE_DAILY","PERIOD"]
[366512290,1750299048768,-800.59,0.00022739,6]
[366512291,1750299048778,-14048.2666799,0.0002394,7]
[366512292,1750299070222,157.47313,0.00025158,120]
[366512293,1750299103537,150.0,0.0001837,2]
[366512294,1750299182304,150.0,0.00018353,2]
[366512295,1750299199420,438.72927485,0.00024658,120]
[366512296,1750299256237,821.59559683,0.0001911,2]
[366512297,1750299257633,150.0,0.00018345,2]
[366512299,1750299331410,150.0,0.00018357,2]
[366512300,1750299403917,150.0,0.00018342,2]
[366512301,1750299549366,150.0,0.00018339,2]
[366512302,1750299594250,1000.0,0.00024,120]
[366512303,1750299616708,3000.0,0.000244,120]
[366512304,1750299635688,2000.0,0.000246,120]
[366512305,1750299681429,150.0,0.00018339,2]
[366512306,1750299765260,4000.0,0.00018,2]
[366512307,1750299791531,2010.0,0.000246,120]
[366512308,1750299807792,1421.0,0.00025152,120]
[366512309,1750299818037,150.0,0.00018341,2]
[366512311,1750299970094,150.0,0.00018356,2]
[366512312,1750300041088,-3567.0,0.0001922,2]
[366512313,1750300041112,-155.75,0.0001923,2]
[366512314,1750300041135,-233.63,0.00020104,2]
[366512315,1750300041155,-228.0,0.0002073,2]
[366512316,1750300041177,-666.0,0.00020732,2]
[366512317,1750300041198,-173.69,0.00020908,2]
[366512318,1750300041220,-300.0,0.00020916,2]
[366512319,1750300041242,-500.0,0.00020917,2]
[366512320,1750300041263,-595.10280729,0.00020917,2]
[366512321,1750300041286,-643.85580346,0.00020917,2]
[366512322,1750300041308,-350.0101863,0.00020917,2]
[366512323,1750300041331,-500.0,0.00020917,2]
[366512324,1750300041353,-500.0,0.00020917,2]
[366512325,1750300041375,-500.0,0.00020917,2]
[366512326,1750300041396,-319.6824884,0.00020917,2]
[366512327,1750300041417,-500.0,0.00020917,2]
[366512328,1750300041439,-500.0,0.00020917,2]
[366512329,1750300041462,-500.0,0.00020917,2]
[366512330,1750300041484,-500.0,0.00020917,2]
[366512331,1750300041505,-545.2764013,0.00020917,2]
[366512332,1750300041527,-500.0,0.00020917,2]
[366512333,1750300041548,-192.04119671,0.00020917,2]
[366512334,1750300041570,-24900.0,0.00020918,2]
[366512335,1750300041593,-311.5,0.00020978,2]
[366512336,1750300041617,-389.38,0.00021852,2]
[366512337,1750300041638,-369.42,0.00021907,3]
[366512338,1750300041662,-393.55415681,0.00021917,6]
[366512339,1750300041683,-495.14092387,0.00021917,6]
[366512340,1750300041704,-460.0,0.00021917,6]
[366512341,1750300041726,-393.62194879,0.00021917,6]
[366512342,1750300041748,-463.37464646,0.00021917,6]
[366512343,1750300041769,-255.30008345,0.00021917,6]
[366512344,1750300041793,-460.0,0.00021917,6]
[366512345,1750300041815,-438.79710056,0.00021917,6]
[366512346,1750300041836,-430.0,0.00021917,6]
[366512347,1750300041856,-433.00189623,0.00021917,6]
[366512348,1750300041878,-436.36893954,0.00021917,6]
[366512349,1750300041899,-460.0,0.00021917,6]
[366512350,1750300041921,-434.36258085,0.00021917,6]
[366512351,1750300041942,-461.25003767,0.00021917,6]
[366512352,1750300041963,-327.04306967,0.00021917,6]
[366512353,1750300041985,-447.53444476,0.00021917,6]
[366512354,1750300042007,-432.79048393,0.00021917,6]
[366512355,1750300042029,-464.43110667,0.00021917,6]
[366512356,1750300042050,-183.17558546,0.00021917,6]
[366512357,1750300042072,-460.0,0.00021917,6]
[366512358,1750300042094,-476.84674733,0.00021917,6]
[366512359,1750300042114,-564.89440954,0.00021917,6]
[366512360,1750300042136,-472.53769538,0.00021917,6]
[366512361,1750300042158,-460.0,0.00021917,6]
[366512362,1750300042178,-460.0,0.00021917,6]
[366512363,1750300042201,-460.0,0.00021917,6]
[366512364,1750300042223,-441.46729121,0.00021917,6]
[366512365,1750300042245,-460.0,0.00021917,6]
[366512366,1750300042266,-460.0,0.00021917,6]
[366512367,1750300042286,-454.22103775,0.00021917,6]
[366512368,1750300042307,-460.0,0.00021917,6]
[366512369,1750300042328,-401.20106301,0.00021917,6]
[366512370,1750300042349,-449.46540128,0.00021917,6]
[366512371,1750300042370,-460.0,0.00021917,6]
[366512372,1750300042391,-435.13010161,0.00021917,6]
[366512373,1750300042412,-432.43068348,0.00021917,6]
[366512374,1750300042434,-447.68901488,0.00021917,6]
[366512375,1750300042456,-434.6673875,0.00021917,6]
[366512376,1750300042477,-460.0,0.00021917,6]
[366512377,1750300042498,-460.0,0.00021917,6]
[366512378,1750300042519,-460.0,0.00021917,6]
[366512379,1750300042540,-272.72249542,0.00021917,6]
[366512380,1750300042562,-460.0,0.00021917,6]
[366512381,1750300042583,-477.55053229,0.00021917,6]
[366512382,1750300042606,-460.0,0.00021917,6]
[366512383,1750300042627,-333.87154699,0.00021917,6]
[366512384,1750300042650,-440.04365938,0.00021917,6]
[366512385,1750300042673,-453.37420563,0.00021917,6]
[366512386,1750300042694,-451.31343989,0.00021917,6]
[366512387,1750300042716,-457.70410058,0.00021917,6]
[366512388,1750300042743,-460.0,0.00021917,6]
[366512389,1750300042925,-460.0,0.00021917,6]
[366512390,1750300042948,-460.0,0.00021917,6]
[366512391,1750300042970,-460.0,0.00021917,6]
[366512392,1750300042991,-168.35390607,0.00021917,6]
[366512393,1750300043012,-443.71080333,0.00021917,6]
[366512394,1750300043032,-460.0,0.00021917,6]
[366512395,1750300043054,-460.0,0.00021917,6]
[366512396,1750300043074,-460.0,0.00021917,6]
[366512397,1750300043095,-445.31263386,0.00021917,6]
[366512398,1750300043115,-473.16487284,0.00021917,6]
[366512399,1750300043136,-393.68196212,0.00021917,6]
[366512400,1750300043157,-460.0,0.00021917,6]
[366512401,1750300043178,-460.0,0.00021917,6]
[366512402,1750300043199,-400.89633906,0.00021917,6]
[366512403,1750300043220,-366.99037498,0.00021917,6]
[366512404,1750300043242,-460.0,0.00021917,6]
[366512405,1750300043264,-460.0,0.00021917,6]
[366512406,1750300043285,-432.62044766,0.00021917,6]
[366512407,1750300043306,-460.0,0.00021917,6]
[366512408,1750300043328,-460.0,0.00021917,6]
[366512409,1750300043350,-460.0,0.00021917,6]
[366512410,1750300043371,-460.0,0.00021917,6]
[366512411,1750300043392,-466.19673808,0.00021917,6]
[366512412,1750300043414,-475.98033254,0.00021917,6]
[366512413,1750300043435,-460.0,0.00021917,6]
[366512414,1750300043457,-460.0,0.00021917,6]
[366512415,1750300043479,-425.9817609,0.00021917,6]
[366512416,1750300043500,-412.36834067,0.00021917,6]
[366512417,1750300043521,-415.38863575,0.00021917,6]
[366512418,1750300043542,-460.0,0.00021917,6]
[366512419,1750300043563,-460.0,0.00021917,6]
[366512420,1750300043584,-460.0,0.00021917,6]
[366512421,1750300043604,-585.41492271,0.00021917,6]
[366512422,1750300043625,-544.81730428,0.00021917,6]
[366512423,1750300043646,-460.0,0.00021917,6]
[366512424,1750300043671,-500.0,0.00021917,6]
[366512425,1750300043693,-460.0,0.00021917,6]
[366512426,1750300043714,-460.0,0.00021917,6]
[366512427,1750300043737,-460.0,0.00021917,6]
[366512428,1750300043757,-438.03744306,0.00021917,6]
[366512429,1750300043778,-460.0,0.00021917,6]
[366512430,1750300043799,-439.40458515,0.00021917,6]
[366512431,1750300043826,-460.0,0.00021917,6]
[366512432,1750300043848,-460.0,0.00021917,6]
[366512433,1750300043868,-460.0,0.00021917,6]
[366512434,1750300043890,-460.0,0.00021917,6]
[366512435,1750300043911,-490.08389935,0.00021917,6]
[366512436,1750300043932,-460.0,0.00021917,6]
[366512437,1750300043953,-460.0,0.00021917,6]
[366512438,1750300043977,-244.52825067,0.00021917,6]
[366512439,1750300043999,-460.0,0.00021917,6]
[366512440,1750300044021,-443.31849834,0.00021917,6]
[366512441,1750300044041,-470.80840624,0.00021917,6]
[366512442,1750300044062,-421.54317386,0.00021917,6]
[366512443,1750300044083,-393.11681066,0.00021917,6]
[366512444,1750300044103,-463.07517441,0.00021917,6]
[366512445,1750300044124,-471.20580846,0.00021917,6]
[366512446,1750300044145,-460.0,0.00021917,6]
[366512447,1750300044166,-462.34662441,0.00021917,6]
[366512448,1750300044187,-310.78824117,0.00021917,6]
[366512449,1750300044208,-460.0,0.00021917,6]
[366512450,1750300044228,-460.0,0.00021917,6]
[366512451,1750300044249,-460.0,0.00021917,6]
[366512452,1750300044270,-460.0,0.00021917,6]
[366512453,1750300044290,-460.0,0.00021917,6]
[366512454,1750300044309,-460.0,0.00021917,6]
[366512455,1750300044329,-517.11063036,0.00021917,6]
[366512456,1750300044350,-460.0,0.00021917,6]
[366512457,1750300044370,-470.83852337,0.00021917,6]
[366512458,1750300044391,-400.0,0.00021917,6]
[366512459,1750300044411,-460.0,0.00021917,6]
[366512460,1750300044430,-460.0,0.00021917,6]
[366512461,1750300044451,-460.0,0.00021917,6]
[366512462,1750300044472,-460.0,0.00021917,6]
[366512463,1750300044492,-460.0,0.00021917,6]
[366512464,1750300044512,-460.0,0.00021917,6]
[366512465,1750300044532,-460.0,0.00021917,6]
[366512466,1750300044552,-460.0,0.00021917,6]
[366512467,1750300044575,-460.0,0.00021917,6]
[366512468,1750300044595,-460.0,0.00021917,6]
[366512469,1750300044615,-269.07692109,0.00021917,6]
[366512470,1750300044636,-403.10290659,0.00021917,6]
[366512471,1750300044660,-398.88572832,0.00021917,6]
[366512472,1750300044680,-454.02905581,0.00021917,6]
[366512473,1750300044700,-304.98772848,0.00021917,6]
[366512474,1750300044722,-460.0,0.00021917,6]
[366512475,1750300044744,-461.83909232,0.00021917,6]
[366512476,1750300044765,-460.0,0.00021917,6]
[366512477,1750300044785,-430.0,0.00021917,6]
[366512478,1750300044806,-327.21695834,0.00021917,6]
[366512479,1750300044827,-460.0,0.00021917,6]
[366512480,1750300044848,-379.59771222,0.00021917,6]
[366512481,1750300044869,-531.7249083,0.00021917,6]
[366512482,1750300044890,-460.0,0.00021917,6]
[366512483,1750300044913,-460.0,0.00021917,6]
[366512484,1750300044935,-460.0,0.00021917,6]
[366512485,1750300044956,-448.39313105,0.00021917,6]
[366512486,1750300044980,-460.0,0.00021917,6]
[366512487,1750300045004,-460.0,0.00021917,6]
[366512488,1750300045026,-463.72909748,0.00021917,6]
[366512489,1750300045049,-404.29375394,0.00021917,6]
[366512490,1750300045070,-460.0,0.00021917,6]
[366512491,1750300045092,-405.0306154,0.00021917,6]
[366512492,1750300045115,-460.0,0.00021917,6]
[366512493,1750300045138,-460.0,0.00021917,6]
[366512494,1750300045162,-401.78155571,0.00021917,6]
[366512495,1750300045187,-460.0,0.00021917,6]
[366512496,1750300045211,-460.0,0.00021917,6]
[366512497,1750300045233,-460.0,0.00021917,6]
[366512498,1750300045259,-460.0,0.00021917,6]
[366512499,1750300045281,-460.0,0.00021917,6]
[366512500,1750300045306,-460.0,0.00021917,6]
[366512501,1750300045328,-460.0,0.00021917,6]
[366512502,1750300045351,-420.0,0.00021917,6]
[366512503,1750300045373,-402.24901143,0.00021917,6]
[366512504,1750300045396,-460.0,0.00021917,6]
[366512505,1750300045420,-460.0,0.00021917,6]
[366512506,1750300045443,-460.0,0.00021917,6]
[366512507,1750300045466,-405.52073768,0.00021917,6]
[366512508,1750300045489,-460.0,0.00021917,6]
[366512509,1750300045514,-403.07615832,0.00021917,6]
[366512510,1750300045539,-411.00607858,0.00021917,6]
[366512511,1750300045565,-460.0,0.00021917,6]
[366512512,1750300045588,-463.93730758,0.00021917,6]
[366512513,1750300045611,-195.40122864,0.00021917,6]
[366512514,1750300045635,-374.80299396,0.00021917,6]
[366512515,1750300045661,-331.18626112,0.00021917,6]
[366512516,1750300045684,-409.34357492,0.00021917,6]
[366512517,1750300045709,-212.66551733,0.00021917,6]
[366512518,1750300045732,-443.07383026,0.00021917,6]
[366512519,1750300045757,-409.92892033,0.00021917,6]
[366512520,1750300045780,-464.27068076,0.00021917,6]
[366512521,1750300045804,-435.70272884,0.00021917,6]
[366512522,1750300045827,-404.83748865,0.00021917,6]
[366512523,1750300045850,-414.10375783,0.00021917,6]
[366512524,1750300045872,-464.43702425,0.00021917,6]
[366512525,1750300045897,-404.0174903,0.00021917,6]
[366512526,1750300045921,-410.14031583,0.00021917,6]
[366512527,1750300045945,-265.81680546,0.00021917,6]
[366512528,1750300045971,-460.0,0.00021917,6]
[366512529,1750300045996,-460.0,0.00021917,6]
[366512530,1750300046019,-460.0,0.00021917,6]
[366512531,1750300046046,-460.0,0.00021917,6]
[366512532,1750300046068,-372.48345512,0.00021917,6]
[366512533,1750300046091,-460.0,0.00021917,6]
[366512534,1750300046116,-460.0,0.00021917,6]
[366512535,1750300046269,-432.98073997,0.00021917,6]
[366512536,1750300046293,-460.0,0.00021917,6]
[366512537,1750300046318,-460.0,0.00021917,6]
[366512538,1750300046342,-391.34455566,0.00021917,6]
[366512539,1750300046365,-370.97259056,0.00021917,6]
[366512540,1750300046389,-460.0,0.00021917,6]
[366512541,1750300046413,-460.0,0.00021917,6]
[366512542,1750300046434,-400.70203168,0.00021917,6]
[366512543,1750300046456,-460.0,0.00021917,6]
[366512544,1750300046478,-460.0,0.00021917,6]
[366512545,1750300046499,-403.15519457,0.00021917,6]
[366512546,1750300046521,-403.504874,0.00021917,6]
[366512547,1750300046544,-460.0,0.00021917,6]
[366512548,1750300046564,-341.84734056,0.00021917,6]
[366512549,1750300046585,-373.99991774,0.00021917,6]
[366512550,1750300046605,-460.0,0.00021917,6]
[366512551,1750300046627,-324.68664778,0.00021917,6]
[366512552,1750300046649,-460.0,0.00021917,6]
[366512553,1750300046673,-460.0,0.00021917,6]
[366512554,1750300046695,-502.24561893,0.00021917,6]
[366512555,1750300046715,-404.53529745,0.00021917,6]
[366512556,1750300046739,-433.77963171,0.00021917,6]
[366512557,1750300046762,-500.0,0.00021917,6]
[366512558,1750300046784,-460.0,0.00021917,6]
[366512559,1750300046808,-500.0,0.00021917,6]
[366512560,1750300046831,-500.0,0.00021917,6]
[366512561,1750300046855,-1338.81,0.00021917,6]
[366512562,1750300046878,-460.0,0.00021917,6]
[366512563,1750300046899,-460.0,0.00021917,6]
[366512564,1750300046921,-2201.51,0.00021917,6]
[366512565,1750300046943,-460.0,0.00021917,6]
[366512566,1750300046964,-460.0,0.00021917,6]
[366512567,1750300046984,-460.0,0.00021917,6]
[366512568,1750300047006,-403.35501149,0.00021917,6]
[366512569,1750300047027,-482.08158654,0.00021917,6]
[366512570,1750300047049,-304.32624974,0.00021917,6]
[366512571,1750300047072,-460.0,0.00021917,6]
[366512572,1750300047093,-595.60869425,0.00021917,6]
[366512573,1750300047118,-424.34142466,0.00021917,6]
[366512574,1750300047140,-478.1906981,0.00021917,6]
[366512575,1750300047164,-460.0,0.00021917,6]
[366512576,1750300047185,-460.0,0.00021917,6]
[366512577,1750300047205,-441.03460248,0.00021917,6]
[366512578,1750300047227,-460.0,0.00021917,6]
[366512579,1750300047248,-460.0,0.00021917,6]
[366512580,1750300047270,-460.0,0.00021917,6]
[366512581,1750300047290,-422.72595215,0.00021917,6]
[366512582,1750300047312,-467.75034792,0.00021917,6]
[366512583,1750300047334,-460.0,0.00021917,6]
[366512584,1750300047355,-460.0,0.00021917,6]
[366512585,1750300047376,-525.23521802,0.00021917,6]
[366512586,1750300047399,-901.4,0.00021917,6]
[366512587,1750300047420,-393.36710806,0.00021917,6]
[366512588,1750300047441,-460.0,0.00021917,6]
[366512589,1750300047462,-460.0,0.00021917,6]
[366512590,1750300047483,-460.0,0.00021917,6]
[366512591,1750300047504,-460.0,0.00021917,6]
[366512592,1750300047526,-403.75575999,0.00021917,6]
[366512593,1750300047548,-460.0,0.00021917,6]
[366512594,1750300047569,-460.0,0.00021917,6]
[366512595,1750300047591,-460.0,0.00021917,6]
[366512596,1750300047611,-424.08906763,0.00021917,6]
[366512597,1750300047632,-460.0,0.00021917,6]
[366512598,1750300047657,-460.0,0.00021917,6]
[366512599,1750300047679,-541.68,0.00021917,6]
[366512600,1750300047701,-446.19589375,0.00021917,6]
[366512601,1750300047722,-460.0,0.00021917,6]
[366512602,1750300047744,-460.0,0.00021917,6]
[366512603,1750300047765,-463.39276783,0.00021917,6]
[366512604,1750300047786,-406.18275147,0.00021917,6]
[366512605,1750300047810,-460.0,0.00021917,6]
[366512606,1750300047832,-460.0,0.00021917,6]
[366512607,1750300047855,-460.0,0.00021917,6]
[366512608,1750300047876,-460.0,0.00021917,6]
[366512609,1750300047898,-308.9724657,0.00021917,6]
[366512610,1750300047921,-460.0,0.00021917,6]
[366512611,1750300047942,-513.7214812,0.00021917,6]
[366512612,1750300047964,-500.0,0.00021917,6]
[366512613,1750300047985,-437.98071053,0.00021917,6]
[366512614,1750300048006,-500.0,0.00021917,6]
[366512615,1750300048027,-500.0,0.00021917,6]
[366512616,1750300048047,-500.0,0.00021917,6]
[366512617,1750300048068,-500.0,0.00021917,6]
[366512618,1750300048088,-404.06077735,0.00021917,6]
[366512619,1750300048108,-468.76302387,0.00021917,6]
[366512620,1750300048129,-460.0,0.00021917,6]
[366512621,1750300048149,-469.78296408,0.00021917,6]
[366512622,1750300048169,-464.11337466,0.00021917,6]
[366512623,1750300048189,-438.49800871,0.00021917,6]
[366512624,1750300048210,-460.0,0.00021917,6]
[366512625,1750300048230,-464.22466852,0.00021917,6]
[366512626,1750300048252,-460.0,0.00021917,6]
[366512627,1750300048272,-463.28902634,0.00021917,6]
[366512628,1750300048294,-460.0,0.00021917,6]
[366512629,1750300048315,-471.5242313,0.00021917,6]
[366512630,1750300048337,-460.0,0.00021917,6]
[366512631,1750300048359,-308.69260259,0.00021917,6]
[366512632,1750300048380,-466.01643263,0.00021917,6]
[366512633,1750300048401,-461.12645252,0.00021917,6]
[366512634,1750300048422,-460.0,0.00021917,6]
[366512635,1750300048443,-460.0,0.00021917,6]
[366512636,1750300048465,-460.0,0.00021917,6]
[366512637,1750300048486,-445.96973869,0.00021917,6]
[366512638,1750300048510,-1348.98,0.00021917,6]
[366512639,1750300048532,-460.0,0.00021917,6]
[366512640,1750300048554,-460.0,0.00021917,6]
[366512641,1750300048575,-460.0,0.00021917,6]
[366512642,1750300048598,-460.0,0.00021917,6]
[366512643,1750300048621,-460.0,0.00021917,6]
[366512644,1750300048645,-460.0,0.00021917,6]
[366512645,1750300048672,-460.0,0.00021917,6]
[366512646,1750300048695,-466.88,0.00021917,6]
[366512647,1750300048721,-1532.9,0.00021917,6]
[366512648,1750300048745,-460.0,0.00021917,6]
[366512649,1750300048767,-208.13637073,0.00021917,6]
[366512650,1750300081988,150.0,0.00018348,2]
[366512655,1750300148107,-150.0,0.00019221,2]
[366512656,1750300148144,-186.27,0.00020095,2]
[366512657,1750300148167,-300.0,0.00020897,2]
[366512658,1750300148192,-1661.83,0.00020898,2]
[366512659,1750300161229,-22981.4193437,0.00020898,2]
[366512660,1750300169144,-256.7506563,0.00020898,2]
[366512661,1750300169172,-225.68820875,0.00020969,2]
[366512662,1750300190740,150.0,0.00018366,2]
[366512672,1750300217722,163.421253,0.00013699,2]
[366512678,1750300232468,-150.0,0.00019241,2]
[366512680,1750300232478,-160.0,0.0002,3]
[366512681,1750300232488,-170.54,0.00020115,2]
[366512683,1750300232498,-227.39,0.0002099,2]
[366512684,1750300232507,-284.23,0.00021865,2]
[366512687,1750300232516,-540.55098775,0.00021916,2]
[366512691,1750300232526,-300.0,0.00021916,2]
[366512694,1750300232535,-460.0,0.00021917,6]
[366512696,1750300232544,-471.51689626,0.00021917,6]
[366512699,1750300232554,-460.0,0.00021917,6]
[366512702,1750300232563,-460.0,0.00021917,6]
[366512704,1750300232572,-403.98989979,0.00021917,6]
[366512706,1750300232582,-489.91558272,0.00021917,6]
[366512708,1750300232591,-460.0,0.00021917,6]
[366512710,1750300232600,-460.0,0.00021917,6]
[366512712,1750300232610,-406.15696,0.00021917,6]
[366512714,1750300232619,-460.0,0.00021917,6]
[366512716,1750300232628,-961.36,0.00021917,6]
[366512718,1750300232637,-406.71508633,0.00021917,6]
[366512721,1750300232646,-451.4452873,0.00021917,6]
[366512723,1750300232655,-460.0,0.00021917,6]
[366512725,1750300232664,-460.0,0.00021917,6]
[366512727,1750300232673,-460.0,0.00021917,6]
[366512728,1750300232683,-478.12891726,0.00021917,6]
[366512729,1750300232692,-1261.89,0.00021917,6]
[366512730,1750300232704,-460.0,0.00021917,6]
[366512731,1750300232714,-460.0,0.00021917,6]
[366512732,1750300232727,-460.0,0.00021917,6]
[366512733,1750300232736,-460.0,0.00021917,6]
[366512734,1750300232747,-460.0,0.00021917,6]
[366512735,1750300232757,-460.0,0.00021917,6]
[366512736,1750300232766,-460.0,0.00021917,6]
[366512737,1750300232777,-460.0,0.00021917,6]
[366512738,1750300232787,-460.0,0.00021917,6]
[366512739,1750300232796,-460.0,0.00021917,6]
[366512740,1750300232805,-460.0,0.00021917,6]
[366512741,1750300232815,-460.0,0.00021917,6]
[366512742,1750300232826,-460.0,0.00021917,6]
[366512743,1750300232836,-460.0,0.00021917,6]
[366512744,1750300232846,-481.90959904,0.00021917,6]
[366512745,1750300232856,-463.66789818,0.00021917,6]
[366512746,1750300232866,-482.87511778,0.00021917,6]
[366512747,1750300232876,-597.6146127,0.00021917,6]
[366512748,1750300232886,-460.0,0.00021917,6]
[366512749,1750300232896,-460.0,0.00021917,6]
[366512750,1750300232907,-1485.6,0.00021917,6]
[366512751,1750300232917,-460.0,0.00021917,6]
[366512752,1750300232927,-460.0,0.00021917,6]
[366512753,1750300232936,-460.0,0.00021917,6]
[366512755,1750300232946,-500.0,0.00021917,6]
[366512756,1750300232956,-226.85128385,0.00021917,6]
[366512757,1750300232965,-463.31151463,0.00021917,6]
[366512759,1750300232975,-460.0,0.00021917,6]
[366512761,1750300232985,-1811.26,0.00021917,6]
[366512763,1750300232996,-567.38002379,0.00021917,6]
[366512765,1750300233006,-460.0,0.00021917,6]
[366512767,1750300233015,-460.0,0.00021917,6]
[366512769,1750300233026,-460.0,0.00021917,6]
[366512771,1750300233035,-500.0,0.00021917,6]
[366512773,1750300233045,-460.0,0.00021917,6]
[366512775,1750300233055,-460.0,0.00021917,6]
[366512777,1750300233065,-388.23315372,0.00021917,6]
[366512779,1750300233075,-460.0,0.00021917,6]
[366512781,1750300233084,-1655.13,0.00021917,6]
[366512783,1750300233093,-529.47526396,0.00021917,6]
[366512785,1750300233102,-460.0,0.00021917,6]
[366512787,1750300233112,-460.0,0.00021917,6]
[366512789,1750300233122,-460.0,0.00021917,6]
[366512791,1750300233131,-568.15662857,0.00021917,6]
[366512793,1750300233141,-471.48635195,0.00021917,6]
[366512795,1750300233150,-460.0,0.00021917,6]
[366512797,1750300233160,-460.0,0.00021917,6]
[366512799,1750300233170,-434.38341609,0.00021917,6]
[366512801,1750300233179,-460.0,0.00021917,6]
[366512802,1750300233189,-460.0,0.00021917,6]
[366512803,1750300233198,-460.0,0.00021917,6]
[366512805,1750300233208,-460.0,0.00021917,6]
[366512806,1750300233218,-460.0,0.00021917,6]
[366512807,1750300233227,-460.0,0.00021917,6]
[366512809,1750300233237,-470.6490253,0.00021917,6]
[366512811,1750300233247,-460.0,0.00021917,6]
[366512812,1750300233256,-287.03863356,0.00021917,6]
[366512814,1750300233266,-460.0,0.00021917,6]
[366512816,1750300233276,-460.0,0.00021917,6]
[366512818,1750300233286,-207.71992192,0.00021917,6]
[366512819,1750300233295,-460.0,0.00021917,6]
[366512820,1750300233305,-460.0,0.00021917,6]
[366512822,1750300233314,-460.0,0.00021917,6]
[366512824,1750300233324,-342.63218256,0.00021917,6]
[366512826,1750300233333,-351.61619317,0.00021917,6]
[366512827,1750300233343,-460.0,0.00021917,6]
[366512829,1750300233353,-460.0,0.00021917,6]
[366512831,1750300233363,-460.0,0.00021917,6]
[366512832,1750300233372,-460.0,0.00021917,6]
[366512833,1750300233383,-460.0,0.00021917,6]
[366512834,1750300233392,-524.33,0.00021917,6]
[366512835,1750300233403,-460.0,0.00021917,6]
[366512836,1750300233413,-460.0,0.00021917,6]
[366512837,1750300233423,-460.0,0.00021917,6]
[366512838,1750300233432,-460.0,0.00021917,6]
[366512839,1750300233441,-460.0,0.00021917,6]
[366512840,1750300233451,-460.0,0.00021917,6]
[366512841,1750300233461,-658.89,0.00021917,6]
[366512842,1750300233471,-460.0,0.00021917,6]
[366512843,1750300233481,-460.0,0.00021917,6]
[366512844,1750300233491,-460.0,0.00021917,6]
[366512845,1750300233500,-460.0,0.00021917,6]
[366512846,1750300233509,-467.11586055,0.00021917,6]
[366512847,1750300233519,-460.0,0.00021917,6]
[366512848,1750300233529,-460.0,0.00021917,6]
[366512849,1750300233538,-463.20536253,0.00021917,6]
[366512850,1750300233715,-460.0,0.00021917,6]
[366512851,1750300233726,-460.0,0.00021917,6]
[366512852,1750300233736,-460.0,0.00021917,6]
[366512853,1750300233747,-468.88838926,0.00021917,6]
[366512854,1750300233756,-384.19226134,0.00021917,6]
[366512855,1750300233766,-460.0,0.00021917,6]
[366512856,1750300233776,-463.81869028,0.00021917,6]
[366512857,1750300233785,-584.69,0.00021917,6]
[366512858,1750300233795,-423.09453085,0.00021917,6]
[366512859,1750300233805,-460.0,0.00021917,6]
[366512860,1750300233815,-432.61578605,0.00021917,6]
[366512861,1750300233824,-440.0,0.00021917,6]
[366512862,1750300233834,-397.84,0.00021917,6]
[366512863,1750300233844,-460.0,0.00021917,6]
[366512864,1750300233855,-460.0,0.00021917,6]
[366512865,1750300233866,-577.14829718,0.00021917,6]
[366512866,1750300233876,-500.0,0.00021917,6]
[366512867,1750300233886,-461.08310082,0.00021917,6]
[366512868,1750300233896,-460.0,0.00021917,6]
[366512869,1750300233906,-460.0,0.00021917,6]
[366512870,1750300233916,-460.0,0.00021917,6]